[Event "*** Titled Tuesday Blitz"]
[Site "Chess.com"]
[Date "2019.11.05"]
[Round "9"]
[White "vanyakuba"]
[Black "kingofthenil"]
[Result "0-1"]
[WhiteElo "2389"]
[BlackElo "2540"]
[TimeControl "180+2"]
[EndTime "15:07:23 PST"]
[Termination "kingofthenil won by resignation"]

1. e4 {[%clk 0:03:01.9]} 1... Nc6 {[%clk 0:02:09.1]} 2. Nc3 {[%clk 0:02:53.9]}
2... e5 {[%clk 0:02:08.7]} 3. Nf3 {[%clk 0:02:52.9]} 3... Nf6 {[%clk 0:02:08.6]}
4. g3 {[%clk 0:02:53.9]} 4... Bb4 {[%clk 0:01:53]} 5. d3 {[%clk 0:02:54]} 5...
O-O {[%clk 0:01:53.8]} 6. Bg2 {[%clk 0:02:54.8]} 6... d5 {[%clk 0:01:54.8]} 7.
exd5 {[%clk 0:02:56.1]} 7... Nxd5 {[%clk 0:01:56.1]} 8. Bd2 {[%clk 0:02:57.6]}
8... Be6 {[%clk 0:01:56.2]} 9. O-O {[%clk 0:02:56.7]} 9... f6 {[%clk 0:01:56.3]}
10. a3 {[%clk 0:02:36.8]} 10... Be7 {[%clk 0:01:47.6]} 11. Re1 {[%clk
0:02:31.6]} 11... Qd7 {[%clk 0:01:48.5]} 12. b4 {[%clk 0:01:51.9]} 12... Rad8
{[%clk 0:01:45.1]} 13. b5 {[%clk 0:01:48.3]} 13... Nb8 {[%clk 0:01:40.8]} 14. a4
{[%clk 0:01:42.9]} 14... Rfe8 {[%clk 0:01:42]} 15. Nh4 {[%clk 0:01:31.2]} 15...
Bf8 {[%clk 0:01:42.2]} 16. Rb1 {[%clk 0:01:23.2]} 16... c6 {[%clk 0:01:42.2]}
17. Qc1 {[%clk 0:01:09.2]} 17... Rc8 {[%clk 0:01:39.8]} 18. bxc6 {[%clk
0:00:46.3]} 18... Nxc6 {[%clk 0:01:41.7]} 19. Nxd5 {[%clk 0:00:45.5]} 19... Bxd5
{[%clk 0:01:43.6]} 20. Bxd5+ {[%clk 0:00:47.2]} 20... Qxd5 {[%clk 0:01:45.5]}
21. Nf5 {[%clk 0:00:41.8]} 21... g6 {[%clk 0:01:42.2]} 22. Ne3 {[%clk
0:00:42.7]} 22... Qd7 {[%clk 0:01:37.8]} 23. Qd1 {[%clk 0:00:36.8]} 23... Bc5
{[%clk 0:01:33.4]} 24. Nc4 {[%clk 0:00:36.7]} 24... Nd4 {[%clk 0:01:33.7]} 25.
c3 {[%clk 0:00:36.2]} 25... Ne6 {[%clk 0:01:34.6]} 26. Qe2 {[%clk 0:00:34.6]}
26... Rcd8 {[%clk 0:01:33.2]} 27. a5 {[%clk 0:00:26.4]} 27... Kg7 {[%clk
0:01:23.1]} 28. h4 {[%clk 0:00:26.7]} 28... Re7 {[%clk 0:01:22.9]} 29. h5 {[%clk
0:00:27.5]} 29... Qxd3 {[%clk 0:01:23.8]} 30. h6+ {[%clk 0:00:19.8]} 30... Kf7
{[%clk 0:01:23]} 31. Nxe5+ {[%clk 0:00:12.9]} 31... fxe5 {[%clk 0:01:22.1]} 32.
Qxe5 {[%clk 0:00:14.8]} 32... Qxd2 {[%clk 0:01:18.3]} 33. Re2 {[%clk 0:00:15]}
33... Qxh6 {[%clk 0:01:17.4]} 34. Kg2 {[%clk 0:00:05.4]} 34... Qg7 {[%clk
0:01:18.6]} 35. Qe4 {[%clk 0:00:03.4]} 35... Qf6 {[%clk 0:01:19.2]} 36. Rxb7
{[%clk 0:00:02.1]} 36... Rdd7 {[%clk 0:01:16]} 37. Rxd7 {[%clk 0:00:03]} 37...
Rxd7 {[%clk 0:01:17.9]} 38. a6 {[%clk 0:00:04.9]} 38... Qf5 {[%clk 0:01:17.4]}
39. Qc4 {[%clk 0:00:05.6]} 39... Qd5+ {[%clk 0:01:18.4]} 40. Qxd5 {[%clk
0:00:06.7]} 40... Rxd5 {[%clk 0:01:20.3]} 41. Rb2 {[%clk 0:00:08.1]} 41... Bb6
{[%clk 0:01:20.3]} 42. c4 {[%clk 0:00:08.1]} 42... Ra5 {[%clk 0:01:19.8]} 0-1

[Event "*** Titled Tuesday Blitz"]
[Site "Chess.com"]
[Date "2019.11.05"]
[Round "9"]
[White "ranu540"]
[Black "DonPreuss"]
[Result "1/2-1/2"]
[WhiteElo "1731"]
[BlackElo "2124"]
[TimeControl "180+2"]
[EndTime "15:07:28 PST"]
[Termination "Game drawn - insufficient material"]

1. d4 {[%clk 0:03:01.9]} 1... Nc6 {[%clk 0:03:00.2]} 2. d5 {[%clk 0:03:02.3]}
2... Ne5 {[%clk 0:03:00.4]} 3. f4 {[%clk 0:03:02.5]} 3... Ng6 {[%clk 0:03:01.4]}
4. e4 {[%clk 0:03:02.7]} 4... e5 {[%clk 0:03:02.5]} 5. f5 {[%clk 0:03:03.3]}
5... Qh4+ {[%clk 0:03:03.7]} 6. Kd2 {[%clk 0:02:54.2]} 6... Qxe4 {[%clk
0:03:05.1]} 7. fxg6 {[%clk 0:02:54.9]} 7... Qxd5+ {[%clk 0:03:05.1]} 8. Ke1
{[%clk 0:02:55.6]} 8... Qxd1+ {[%clk 0:03:05.8]} 9. Kxd1 {[%clk 0:02:57.5]} 9...
hxg6 {[%clk 0:03:06.9]} 10. Nc3 {[%clk 0:02:58.3]} 10... c6 {[%clk 0:03:07.8]}
11. Nf3 {[%clk 0:02:50.9]} 11... f6 {[%clk 0:03:07]} 12. Be2 {[%clk 0:02:48.4]}
12... d5 {[%clk 0:03:07.9]} 13. Bd2 {[%clk 0:02:45.4]} 13... g5 {[%clk 0:03:07]}
14. Kc1 {[%clk 0:02:41.6]} 14... g4 {[%clk 0:03:03.9]} 15. Ne1 {[%clk
0:02:41.9]} 15... f5 {[%clk 0:03:04.4]} 16. Nd3 {[%clk 0:02:41.1]} 16... Bd6
{[%clk 0:03:02]} 17. b3 {[%clk 0:02:31.2]} 17... Nf6 {[%clk 0:02:56.4]} 18. Kb2
{[%clk 0:02:30.8]} 18... Bd7 {[%clk 0:02:26.5]} 19. Rae1 {[%clk 0:02:29]} 19...
O-O-O {[%clk 0:02:26.7]} 20. Bd1 {[%clk 0:02:27.9]} 20... Rde8 {[%clk
0:02:27.2]} 21. a4 {[%clk 0:02:24.4]} 21... d4 {[%clk 0:02:05.7]} 22. Ne2 {[%clk
0:02:11.8]} 22... Ne4 {[%clk 0:02:03.7]} 23. Bc1 {[%clk 0:02:10.2]} 23... f4
{[%clk 0:01:58]} 24. Ref1 {[%clk 0:01:52.5]} 24... g5 {[%clk 0:01:57.7]} 25. Nf2
{[%clk 0:01:51.1]} 25... Nxf2 {[%clk 0:01:55.2]} 26. Rxf2 {[%clk 0:01:53]} 26...
c5 {[%clk 0:01:51.2]} 27. g3 {[%clk 0:01:37.1]} 27... f3 {[%clk 0:01:47.6]} 28.
Ng1 {[%clk 0:01:38.1]} 28... e4 {[%clk 0:01:47.5]} 29. Bxg5 {[%clk 0:01:39]}
29... e3 {[%clk 0:01:46]} 30. Rf1 {[%clk 0:01:38.5]} 30... Bc6 {[%clk
0:01:34.1]} 31. Nxf3 {[%clk 0:01:21.3]} 31... gxf3 {[%clk 0:01:30.9]} 32. Bxf3
{[%clk 0:01:23.2]} 32... Bxf3 {[%clk 0:01:30]} 33. Rxf3 {[%clk 0:01:25.1]} 33...
e2 {[%clk 0:01:28.2]} 34. Bd2 {[%clk 0:01:19]} 34... Rhf8 {[%clk 0:01:25.3]} 35.
Rxf8 {[%clk 0:01:16.8]} 35... Rxf8 {[%clk 0:01:25.7]} 36. Re1 {[%clk 0:01:17.6]}
36... Rf2 {[%clk 0:01:25.8]} 37. Bf4 {[%clk 0:01:07.4]} 37... Bxf4 {[%clk
0:01:25.8]} 38. gxf4 {[%clk 0:01:09.3]} 38... Rxh2 {[%clk 0:01:25]} 39. f5
{[%clk 0:01:10.6]} 39... Kd7 {[%clk 0:01:25]} 40. Kc1 {[%clk 0:01:11.4]} 40...
Rf2 {[%clk 0:01:19.7]} 41. Kd2 {[%clk 0:01:12]} 41... Kd6 {[%clk 0:01:12.2]} 42.
Rxe2 {[%clk 0:01:06.6]} 42... Rxf5 {[%clk 0:01:13.6]} 43. Kd3 {[%clk 0:01:06.6]}
43... a6 {[%clk 0:01:14.1]} 44. Kc4 {[%clk 0:01:06.4]} 44... Rf6 {[%clk
0:01:15.2]} 45. a5 {[%clk 0:01:02.8]} 45... Kc6 {[%clk 0:01:10.2]} 46. b4 {[%clk
0:01:03.6]} 46... d3 {[%clk 0:01:01.1]} 47. cxd3 {[%clk 0:00:58]} 47... Rf4+
{[%clk 0:01:01.9]} 48. Re4 {[%clk 0:00:56.1]} 48... Rxe4+ {[%clk 0:00:53.9]} 49.
dxe4 {[%clk 0:00:58]} 49... cxb4 {[%clk 0:00:54.8]} 50. Kxb4 {[%clk 0:00:56.7]}
50... b6 {[%clk 0:00:54.4]} 51. axb6 {[%clk 0:00:55]} 51... Kxb6 {[%clk
0:00:55.3]} 52. e5 {[%clk 0:00:55.1]} 52... Kc6 {[%clk 0:00:54.9]} 53. Ka5
{[%clk 0:00:57]} 53... Kd5 {[%clk 0:00:55.8]} 54. Kxa6 {[%clk 0:00:58.9]} 54...
Kxe5 {[%clk 0:00:57.3]} 1/2-1/2

[Event "*** Titled Tuesday Blitz"]
[Site "Chess.com"]
[Date "2019.11.05"]
[Round "9"]
[White "RitvarsReimanis"]
[Black "WinningButNotReally"]
[Result "0-1"]
[WhiteElo "2595"]
[BlackElo "2456"]
[TimeControl "180+2"]
[EndTime "15:07:30 PST"]
[Termination "WinningButNotReally won on time"]

1. d4 {[%clk 0:03:01.9]} 1... Nf6 {[%clk 0:03:00.7]} 2. c4 {[%clk 0:03:02.8]}
2... g6 {[%clk 0:03:02]} 3. Nc3 {[%clk 0:03:03.5]} 3... d5 {[%clk 0:03:03.3]} 4.
e3 {[%clk 0:03:04.4]} 4... Bg7 {[%clk 0:03:04.2]} 5. Qb3 {[%clk 0:03:05.6]} 5...
dxc4 {[%clk 0:03:03]} 6. Bxc4 {[%clk 0:03:07.5]} 6... O-O {[%clk 0:03:04.2]} 7.
Nf3 {[%clk 0:03:08.8]} 7... e6 {[%clk 0:03:02.6]} 8. O-O {[%clk 0:03:08.3]} 8...
Nc6 {[%clk 0:03:03.6]} 9. Be2 {[%clk 0:03:09]} 9... b6 {[%clk 0:02:45.2]} 10.
Bd2 {[%clk 0:03:00.7]} 10... Bb7 {[%clk 0:02:45.8]} 11. Rac1 {[%clk 0:03:01.5]}
11... Na5 {[%clk 0:02:41.7]} 12. Qd1 {[%clk 0:03:00.1]} 12... Nd5 {[%clk
0:02:29.2]} 13. Nxd5 {[%clk 0:02:46.1]} 13... Bxd5 {[%clk 0:02:00.6]} 14. Bxa5
{[%clk 0:02:46.3]} 14... bxa5 {[%clk 0:02:02.5]} 15. Qa4 {[%clk 0:02:45.8]}
15... c6 {[%clk 0:02:03.3]} 16. Rc5 {[%clk 0:02:36.3]} 16... Rb8 {[%clk
0:02:00.7]} 17. b3 {[%clk 0:02:36.9]} 17... g5 {[%clk 0:01:49.6]} 18. Rxa5
{[%clk 0:02:32.3]} 18... g4 {[%clk 0:01:50]} 19. Nd2 {[%clk 0:02:28.4]} 19...
Qg5 {[%clk 0:01:33]} 20. Rc1 {[%clk 0:02:00.1]} 20... f5 {[%clk 0:01:21.7]} 21.
Rd1 {[%clk 0:01:06.8]} 21... f4 {[%clk 0:01:11.9]} 22. e4 {[%clk 0:01:01.4]}
22... f3 {[%clk 0:01:10.4]} 23. Bf1 {[%clk 0:01:02.3]} 23... fxg2 {[%clk
0:01:05.4]} 24. Bxg2 {[%clk 0:01:03.1]} 24... Qf4 {[%clk 0:01:03.1]} 25. exd5
{[%clk 0:00:52.2]} 25... Qxf2+ {[%clk 0:01:03.7]} 26. Kh1 {[%clk 0:00:53.1]}
26... Qe2 {[%clk 0:01:03.9]} 27. Rg1 {[%clk 0:00:33.3]} 27... Qxd2 {[%clk
0:00:50.6]} 28. dxc6 {[%clk 0:00:21.6]} 28... Bxd4 {[%clk 0:00:45.9]} 29. Rxa7
{[%clk 0:00:09.1]} 29... Qf2 {[%clk 0:00:29.9]} 30. Rd1 {[%clk 0:00:06.2]} 30...
Bxa7 {[%clk 0:00:29.3]} 31. Qxg4+ {[%clk 0:00:06.4]} 31... Kh8 {[%clk
0:00:30.1]} 32. c7 {[%clk 0:00:06.9]} 32... Rbc8 {[%clk 0:00:29.4]} 33. Qxe6
{[%clk 0:00:08]} 33... Bd4 {[%clk 0:00:27.3]} 34. Qd7 {[%clk 0:00:06.9]} 34...
Be5 {[%clk 0:00:23.8]} 35. Rc1 {[%clk 0:00:05.6]} 35... Qf4 {[%clk 0:00:24.3]}
0-1

[Event "*** Titled Tuesday Blitz"]
[Site "Chess.com"]
[Date "2019.11.05"]
[Round "9"]
[White "ferdipy"]
[Black "misha_chessone"]
[Result "1-0"]
[WhiteElo "2219"]
[BlackElo "2329"]
[TimeControl "180+2"]
[EndTime "15:07:30 PST"]
[Termination "ferdipy won by resignation"]

1. e4 {[%clk 0:03:01.9]} 1... e6 {[%clk 0:03:00.2]} 2. d4 {[%clk 0:03:01.9]}
2... d5 {[%clk 0:03:01.4]} 3. e5 {[%clk 0:03:02.8]} 3... c5 {[%clk 0:03:02.1]}
4. c3 {[%clk 0:03:04.7]} 4... Nc6 {[%clk 0:03:03.1]} 5. Nf3 {[%clk 0:03:06.6]}
5... Qb6 {[%clk 0:03:04.1]} 6. a3 {[%clk 0:03:07.4]} 6... a5 {[%clk 0:03:04.7]}
7. b3 {[%clk 0:03:02.4]} 7... Bd7 {[%clk 0:03:03.5]} 8. Be3 {[%clk 0:02:57.5]}
8... cxd4 {[%clk 0:03:01.8]} 9. cxd4 {[%clk 0:02:57]} 9... Nge7 {[%clk
0:03:02.2]} 10. Bd3 {[%clk 0:02:55.6]} 10... Nf5 {[%clk 0:03:00.3]} 11. Bc2
{[%clk 0:02:51.7]} 11... Be7 {[%clk 0:02:57.6]} 12. O-O {[%clk 0:02:52.6]} 12...
O-O {[%clk 0:02:58.2]} 13. g4 {[%clk 0:02:53.7]} 13... Nxe3 {[%clk 0:02:53.9]}
14. fxe3 {[%clk 0:02:55.6]} 14... f6 {[%clk 0:02:47.4]} 15. exf6 {[%clk
0:02:54]} 15... Bxf6 {[%clk 0:02:43.6]} 16. Qd3 {[%clk 0:02:49.8]} 16... g6
{[%clk 0:02:44.3]} 17. h4 {[%clk 0:02:51.2]} 17... Bg7 {[%clk 0:02:25.2]} 18.
Nc3 {[%clk 0:02:50]} 18... Rad8 {[%clk 0:02:12.1]} 19. h5 {[%clk 0:02:40]} 19...
Be8 {[%clk 0:02:10.8]} 20. Ng5 {[%clk 0:02:34.7]} 20... Qc7 {[%clk 0:01:59.2]}
21. Nxe6 {[%clk 0:02:33.9]} 21... Qg3+ {[%clk 0:01:59.4]} 22. Kh1 {[%clk
0:02:33.1]} 22... Qh3+ {[%clk 0:01:50.7]} 23. Kg1 {[%clk 0:02:33.9]} 23... Qxg4+
{[%clk 0:01:41.7]} 24. Kh2 {[%clk 0:02:26.7]} 24... Qxe6 {[%clk 0:01:28]} 25.
Rxf8+ {[%clk 0:02:26.3]} 25... Bxf8 {[%clk 0:01:27.9]} 26. Rg1 {[%clk
0:02:18.9]} 26... Bd6+ {[%clk 0:01:27]} 27. Kg2 {[%clk 0:02:17.7]} 27... Qg4+
{[%clk 0:01:20.8]} 28. Kf1 {[%clk 0:02:18]} 28... Qf3+ {[%clk 0:01:12.7]} 29.
Ke1 {[%clk 0:02:18.7]} 29... Bg3+ {[%clk 0:01:13.4]} 30. Kd2 {[%clk 0:02:18.9]}
30... Qf2+ {[%clk 0:01:14.4]} 31. Ne2 {[%clk 0:02:20.2]} 31... Bh2 {[%clk
0:00:38.5]} 32. Rg5 {[%clk 0:01:57.6]} 32... Qf6 {[%clk 0:00:34.3]} 33. Rg2
{[%clk 0:01:56.4]} 33... Bd6 {[%clk 0:00:34.4]} 34. Qb5 {[%clk 0:01:51.8]} 34...
Bf8 {[%clk 0:00:23.9]} 35. Qxb7 {[%clk 0:01:49.7]} 35... Qe7 {[%clk 0:00:20.4]}
36. hxg6 {[%clk 0:01:42.2]} 36... Bg7 {[%clk 0:00:12.6]} 37. gxh7+ {[%clk
0:01:40.2]} 37... Kh8 {[%clk 0:00:13.3]} 38. Qb6 {[%clk 0:01:35.5]} 38... Bd7
{[%clk 0:00:12.4]} 39. Nf4 {[%clk 0:01:33]} 39... Be8 {[%clk 0:00:09.1]} 40.
Qxc6 {[%clk 0:01:32.4]} 40... Qxa3 {[%clk 0:00:02.5]} 41. Qc5 {[%clk 0:01:24.9]}
41... Qxc5 {[%clk 0:00:03.2]} 42. dxc5 {[%clk 0:01:25.5]} 42... Bb5 {[%clk
0:00:03.8]} 43. Rxg7 {[%clk 0:01:24.5]} 43... Kxg7 {[%clk 0:00:03.9]} 44. Ne6+
{[%clk 0:01:25.8]} 44... Kf6 {[%clk 0:00:04.4]} 45. Nxd8 {[%clk 0:01:26]} 1-0

[Event "*** Titled Tuesday Blitz"]
[Site "Chess.com"]
[Date "2019.11.05"]
[Round "9"]
[White "mikhaillushenkov"]
[Black "Keaton87"]
[Result "0-1"]
[WhiteElo "2694"]
[BlackElo "2591"]
[TimeControl "180+2"]
[EndTime "15:07:33 PST"]
[Termination "Keaton87 won by resignation"]

1. Nf3 {[%clk 0:03:01.9]} 1... d5 {[%clk 0:02:55.8]} 2. d4 {[%clk 0:03:02.8]}
2... Nf6 {[%clk 0:02:56.3]} 3. c4 {[%clk 0:03:03.9]} 3... e6 {[%clk 0:02:56.9]}
4. Nc3 {[%clk 0:03:05.2]} 4... Be7 {[%clk 0:02:54.5]} 5. Qc2 {[%clk 0:03:06.4]}
5... O-O {[%clk 0:02:54.8]} 6. e4 {[%clk 0:03:07.7]} 6... dxe4 {[%clk
0:02:52.5]} 7. Nxe4 {[%clk 0:03:09.6]} 7... Nxe4 {[%clk 0:02:52.4]} 8. Qxe4
{[%clk 0:03:11.5]} 8... c5 {[%clk 0:02:51.3]} 9. Bd2 {[%clk 0:02:52.2]} 9...
cxd4 {[%clk 0:02:48.4]} 10. Qxd4 {[%clk 0:02:51.5]} 10... Nc6 {[%clk 0:02:46.7]}
11. Qxd8 {[%clk 0:02:50.8]} 11... Rxd8 {[%clk 0:02:48.6]} 12. Bc3 {[%clk
0:02:51]} 12... Nb4 {[%clk 0:02:43.5]} 13. Bxb4 {[%clk 0:02:39.9]} 13... Bxb4+
{[%clk 0:02:43.8]} 14. Ke2 {[%clk 0:02:41]} 14... b6 {[%clk 0:02:40.3]} 15. a3
{[%clk 0:02:41.3]} 15... Be7 {[%clk 0:02:40.3]} 16. b4 {[%clk 0:02:37.9]} 16...
Bb7 {[%clk 0:02:39.2]} 17. Ke3 {[%clk 0:02:34.7]} 17... a5 {[%clk 0:02:36.4]}
18. bxa5 {[%clk 0:02:26.3]} 18... Bc5+ {[%clk 0:02:35.5]} 19. Kf4 {[%clk
0:02:23.3]} 19... Rxa5 {[%clk 0:02:33.5]} 20. Kg3 {[%clk 0:02:23.5]} 20... Bxa3
{[%clk 0:02:26.5]} 21. Be2 {[%clk 0:02:22.6]} 21... Bd6+ {[%clk 0:02:22.4]} 22.
Kh3 {[%clk 0:02:22.8]} 22... Rh5+ {[%clk 0:02:21.7]} 23. Kg4 {[%clk 0:02:21.9]}
23... g6 {[%clk 0:02:18.6]} 24. h4 {[%clk 0:02:21.1]} 24... e5 {[%clk
0:02:09.9]} 25. Ng5 {[%clk 0:02:12]} 25... h6 {[%clk 0:02:07]} 26. Kh3 {[%clk
0:02:01.2]} 26... hxg5 {[%clk 0:02:07.5]} 27. Bxh5 {[%clk 0:02:02.6]} 27... gxh5
{[%clk 0:02:07.4]} 28. hxg5 {[%clk 0:02:02.9]} 28... Be4 {[%clk 0:02:04.3]} 29.
Rhd1 {[%clk 0:01:56.3]} 29... Kg7 {[%clk 0:01:56.4]} 30. Ra6 {[%clk 0:01:53.2]}
30... Be7 {[%clk 0:01:53.5]} 31. Rxd8 {[%clk 0:01:51.1]} 31... Bxd8 {[%clk
0:01:55.4]} 32. Kh4 {[%clk 0:01:50.5]} 32... Bd3 {[%clk 0:01:50]} 33. Ra8 {[%clk
0:01:42.6]} 33... Be7 {[%clk 0:01:47.4]} 34. Re8 {[%clk 0:01:40.2]} 34... Bc5
{[%clk 0:01:47.1]} 35. f3 {[%clk 0:01:32.4]} 35... Bxc4 {[%clk 0:01:43.7]} 36.
Rxe5 {[%clk 0:01:31.8]} 36... Kg6 {[%clk 0:01:36.8]} 37. Re8 {[%clk 0:01:20.9]}
37... b5 {[%clk 0:01:31.1]} 38. g3 {[%clk 0:01:13.2]} 38... Be6 {[%clk
0:01:00.1]} 39. Rg8+ {[%clk 0:01:10.1]} 39... Kh7 {[%clk 0:01:00.7]} 40. Rb8
{[%clk 0:01:11.1]} 40... b4 {[%clk 0:01:00.5]} 41. Kxh5 {[%clk 0:01:12.6]} 41...
b3 {[%clk 0:01:00.1]} 42. f4 {[%clk 0:01:00.9]} 42... Bd4 {[%clk 0:00:59.3]} 43.
f5 {[%clk 0:01:01.9]} 43... Bd5 {[%clk 0:00:50.5]} 44. g6+ {[%clk 0:00:53.5]}
44... fxg6+ {[%clk 0:00:51.2]} 45. fxg6+ {[%clk 0:00:55.4]} 45... Kg7 {[%clk
0:00:52.3]} 0-1

[Event "*** Titled Tuesday Blitz"]
[Site "Chess.com"]
[Date "2019.11.05"]
[Round "9"]
[White "kinga2008"]
[Black "WeAintSurePal"]
[Result "1-0"]
[WhiteElo "1981"]
[BlackElo "2454"]
[TimeControl "180+2"]
[EndTime "15:07:41 PST"]
[Termination "kinga2008 won by checkmate"]

1. e4 {[%clk 0:03:01.9]} 1... c6 {[%clk 0:02:57.5]} 2. d4 {[%clk 0:03:02.4]}
2... d5 {[%clk 0:02:58.8]} 3. exd5 {[%clk 0:03:04.3]} 3... cxd5 {[%clk
0:03:00.1]} 4. c4 {[%clk 0:03:06.2]} 4... Nf6 {[%clk 0:03:01]} 5. Nc3 {[%clk
0:03:07.1]} 5... Nc6 {[%clk 0:03:01.3]} 6. Nf3 {[%clk 0:03:08]} 6... Bg4 {[%clk
0:03:00.9]} 7. cxd5 {[%clk 0:03:02.7]} 7... Nxd5 {[%clk 0:03:01.4]} 8. Be3
{[%clk 0:02:59.4]} 8... e6 {[%clk 0:03:00.4]} 9. Bc4 {[%clk 0:02:56]} 9... Bb4
{[%clk 0:02:59.4]} 10. Bxd5 {[%clk 0:02:57]} 10... Qxd5 {[%clk 0:02:58.9]} 11.
O-O {[%clk 0:02:55.8]} 11... Bxc3 {[%clk 0:02:59.4]} 12. bxc3 {[%clk 0:02:55.9]}
12... Bxf3 {[%clk 0:03:00.2]} 13. Qxf3 {[%clk 0:02:56.6]} 13... Qxf3 {[%clk
0:03:00.6]} 14. gxf3 {[%clk 0:02:58.5]} 14... Na5 {[%clk 0:03:00.1]} 15. Rab1
{[%clk 0:02:57.8]} 15... Rc8 {[%clk 0:02:59.9]} 16. Rfc1 {[%clk 0:02:51.5]}
16... b6 {[%clk 0:02:58.8]} 17. Rb5 {[%clk 0:02:34.6]} 17... Kd7 {[%clk
0:02:59.1]} 18. Kf1 {[%clk 0:02:26]} 18... Rc4 {[%clk 0:02:58.6]} 19. Ke2 {[%clk
0:02:23.4]} 19... Rhc8 {[%clk 0:02:59.6]} 20. Kd3 {[%clk 0:02:23.7]} 20... Ra4
{[%clk 0:02:59.8]} 21. Rc2 {[%clk 0:02:03.2]} 21... Nc4 {[%clk 0:02:59.3]} 22.
Rb4 {[%clk 0:01:56]} 22... Rxb4 {[%clk 0:02:25.8]} 23. cxb4 {[%clk 0:01:55.4]}
23... b5 {[%clk 0:02:27.3]} 24. a4 {[%clk 0:01:50]} 24... a6 {[%clk 0:02:24.2]}
25. axb5 {[%clk 0:01:48.6]} 25... axb5 {[%clk 0:02:26.1]} 26. Ra2 {[%clk
0:01:49.4]} 26... Rc7 {[%clk 0:02:26.6]} 27. Bf4 {[%clk 0:01:48.8]} 27... Rb7
{[%clk 0:02:27.1]} 28. Ra8 {[%clk 0:01:48.1]} 28... Ke7 {[%clk 0:02:22.8]} 29.
Rg8 {[%clk 0:01:44.5]} 29... Kf6 {[%clk 0:02:22.6]} 30. h4 {[%clk 0:01:41.6]}
30... Rd7 {[%clk 0:02:23]} 31. Ke4 {[%clk 0:01:31.3]} 31... Rd5 {[%clk
0:02:19.4]} 32. Rc8 {[%clk 0:01:08.5]} 32... h6 {[%clk 0:02:17.2]} 33. Rc5
{[%clk 0:01:06.6]} 33... Nb6 {[%clk 0:02:16.5]} 34. Bc7 {[%clk 0:01:02.2]} 34...
Rxc5 {[%clk 0:01:56]} 35. dxc5 {[%clk 0:00:59.3]} 35... Nd5 {[%clk 0:01:57]} 36.
Bd8+ {[%clk 0:00:59.6]} 36... Kg6 {[%clk 0:01:57.2]} 37. c6 {[%clk 0:00:57.9]}
37... f5+ {[%clk 0:01:57.8]} 38. Ke5 {[%clk 0:00:55.5]} 38... Kf7 {[%clk
0:01:50.1]} 39. c7 {[%clk 0:00:53]} 39... Nb6 {[%clk 0:01:51]} 40. Kd6 {[%clk
0:00:31.2]} 40... Nc8+ {[%clk 0:01:41]} 41. Kd7 {[%clk 0:00:32]} 41... Nb6+
{[%clk 0:01:41.6]} 42. Kc6 {[%clk 0:00:33.5]} 42... Nc8 {[%clk 0:01:42.6]} 43.
Kxb5 {[%clk 0:00:25.6]} 43... Ke8 {[%clk 0:01:43.2]} 44. Kc6 {[%clk 0:00:26.6]}
44... g5 {[%clk 0:01:43.8]} 45. hxg5 {[%clk 0:00:26.4]} 45... h5 {[%clk
0:01:44.9]} 46. g6 {[%clk 0:00:27.6]} 46... h4 {[%clk 0:01:45.4]} 47. Bxh4
{[%clk 0:00:27.3]} 47... Kf8 {[%clk 0:01:46.4]} 48. b5 {[%clk 0:00:18.7]} 48...
Kg7 {[%clk 0:01:47.2]} 49. b6 {[%clk 0:00:19.8]} 49... Kxg6 {[%clk 0:01:48.5]}
50. b7 {[%clk 0:00:21]} 50... Na7+ {[%clk 0:01:50.4]} 51. Kb6 {[%clk 0:00:21.7]}
51... Nc8+ {[%clk 0:01:51.8]} 52. bxc8=Q {[%clk 0:00:22.5]} 52... Kh6 {[%clk
0:01:53.7]} 53. Qxe6+ {[%clk 0:00:23.2]} 53... Kh5 {[%clk 0:01:54.5]} 54. Bg3
{[%clk 0:00:24.1]} 54... f4 {[%clk 0:01:54.7]} 55. Qg4+ {[%clk 0:00:24.7]} 55...
Kh6 {[%clk 0:01:54.8]} 56. Bxf4+ {[%clk 0:00:26.3]} 56... Kh7 {[%clk 0:01:56.7]}
57. Be5 {[%clk 0:00:25.2]} 57... Kh6 {[%clk 0:01:56.9]} 58. f4 {[%clk
0:00:26.3]} 58... Kh7 {[%clk 0:01:57.7]} 59. Qg7# {[%clk 0:00:27.7]} 1-0